Cogmind - Beta 13 @@@ ROGUE MODE // 2024.05.23 @ 07:38:05 Player: TurnLeft25 Result: Destroyed by as-71866 with Assembled Rifle Performance ------------- Evolutions (1) 500 Regions Visited (3) 600 Robots Destroyed (15) 75 Value Destroyed (420) 420 Prototype IDs (6) 120 Alien Tech Used (0) 0 Bonus (200) 200 TOTAL SCORE: 1915 Bonus ------- Pacifist 200 Cogmind --------- Core Integrity 0/400 Matter 259/300 Energy 90/100 System Corruption 0% Temperature Cool (0) Movement Hovering (80) Location -9/Mines Parts ------- > --- POWER (1) -------- (None) > --- PROPULSION (2) --- Combat Airjet > --- UTILITY (4) ------ Medium Storage Unit Improved Targeting Computer > --- WEAPON (2) ------- Hammer > --- INVENTORY (10) --- Improved Ion Engine Light Treads Light Treads Light Treads Aluminum Leg Aluminum Leg Peak State ------------ > --- POWER ------------ Improved Ion Engine > --- PROPULSION ------- Aluminum Leg Improved Aluminum Leg > --- UTILITY ---------- Heat Sink Medium Storage Unit Light Armor Plating Medium Armor Plating > --- WEAPON ----------- Heavy Assault Rifle Heavy Assault Rifle > --- INVENTORY -------- Improved Ion Engine Light Treads Light Treads Light Treads Light Treads Aluminum Leg Aluminum Leg Aluminum Leg Improved Light Cannon Hammer [Rating: 15] Favorites ----------- Power Ion Engine Engine Ion Engine Propulsion Aluminum Leg Leg Aluminum Leg Hover Unit Combat Airjet Utility Medium Storage Unit Device Heat Sink Storage Medium Storage Unit Processor Improved Targeting Computer Protection Medium Armor Plating Weapon Assault Rifle Energy Gun Small Laser Ballistic Gun Assault Rifle Ballistic Cannon Improved Light Cannon Launcher Mini Grenade Launcher Impact Weapon Hammer Build | -11 -10 -9 -9 ------- Run | Yrd Mat Mat Min Slots Evolved 2 | . . 2 . Power . | . . . . Propulsion . | . . . . Utility 2 | . . 2 . Weapon . | . . . . Parts Attached 39 | 7 2 17 13 Power 4 | 1 . 2 1 Engine 4 | 1 . 2 1 Core . | . . . . Reactor . | . . . . Propulsion 5 | 2 . 1 2 Treads . | . . . . Leg 4 | 2 . 1 1 Wheel . | . . . . Hover 1 | . . . 1 Flight . | . . . . Utility 13 | 1 2 8 2 Device 1 | . . 1 . Storage 2 | 1 1 . . Processor 1 | . . . 1 Hackware . | . . . . Protection 9 | . 1 7 1 Artifact . | . . . . Weapon 17 | 3 . 6 8 Energy Gun 4 | 2 . 1 1 Energy Cannon . | . . . . Ballistic Gun 9 | 1 . 5 3 Ballistic Cannon 2 | . . . 2 Launcher 1 | . . . 1 Special Weapon . | . . . . Impact Weapon 1 | . . . 1 Slashing Weapon . | . . . . Piercing Weapon . | . . . . Special Melee Weapon . | . . . . Unidentified Prototypes . | . . . . Parts Lost 14 | . . 3 11 Power 1 | . . . 1 Propulsion 2 | . . . 2 Utility 6 | . . 3 3 Weapon 5 | . . . 5 Highest Loss Streak 6 | . . 3 6 To Critical Strikes . | . . . . Average Slot Usage (%) 86 | . 96 94 67 Engine 9 | . 14 11 5 Leg 19 | . 28 22 12 Device 3 | . . 3 5 Storage 11 | . 14 11 11 Protection 17 | . 10 24 11 Energy Gun 6 | . 14 6 3 Ballistic Gun 14 | . 14 15 12 Naked Turns . | . . . . Heaviest Build 37 | 12 20 37 34 Greatest Support 23 | 20 20 20 23 Greatest Overweight (x) 5 | 3 . 1 5 Average Overweight (x) . | . . . 1 Largest Inventory Capacity 10 | 8 10 10 10 Average Capacity 9 | 7 8 10 10 Most Carried 10 | 3 8 10 10 Average Carried 8 | 1 4 9 9 Final Capacity 10 | 8 10 10 10 Final Carried 10 | 3 7 10 6 Class Distribution -------------------- 87% | Mutant 12% | Scavenger-Mutant Dominant Class ---------------- Mutant | -10/Materials Mutant | -9/Materials Scavenger-Mutant | -9/Mines Resources | -11 -10 -9 -9 ----------- Run | Yrd Mat Mat Min Matter Collected 696 | 233 . 288 175 Remotely . | . . . . Salvage Created 519 | . . 322 197 Parts 38 | . . 23 15 Haulers Intercepted . | . . . . Recyclers Shooed 1 | . . 1 . Parts Field Recycled . | . . . . Retrieved Matter . | . . . . Parts Self-Destructed . | . . . . Prevented . | . . . . Kills | -11 -10 -9 -9 ------- Run | Yrd Mat Mat Min Combat Hostiles Destroyed 16 | . . 9 7 Melee 1 | . . . 1 Guns 14 | . . 9 5 Cannons 1 | . . . 1 Classes Destroyed 7 | . . 4 3 Worker 1 | . . . 1 Swarmer 6 | . . 4 2 Grunt 1 | . . 1 . Duelist 1 | . . 1 . Sentry 5 | . . 3 2 Demolisher 1 | . . . 1 Assembled 2 | . . . 2 Best Kill Streak 4 | . . 4 4 Combat Bots Only 4 | . . 4 3 Max Kills in Single Turn 1 | . . 1 1 Gunslinging . | . . . . Exploded . | . . . . Melee 1 | . . . 1 Uniques/NPCs Destroyed . | . . . . Combat | -11 -10 -9 -9 -------- Run | Yrd Mat Mat Min Hostile Shots Fired 193 | . . 85 108 Missed 54 | . . 24 30 Damage Taken 2305 | . . 866 1439 Core 408 | . . 82 326 Absorbed by Shields . | . . . . Core Remaining (%) 100 | 100 100 . . Volleys Fired 71 | 1 . 38 32 Largest 2 | 2 . 2 2 Hottest 95 | 60 . 76 95 Shots Fired 116 | 2 . 70 44 Gun 108 | 2 . 70 36 Cannon 8 | . . . 8 Launcher . | . . . . Special . | . . . . Kinetic 85 | 1 . 55 29 Thermal 31 | 1 . 15 15 Explosive . | . . . . Electromagnetic . | . . . . Robot Hit Streak 10 | 2 . 10 9 Robot Miss Streak 6 | . . 3 6 Penetration Max . | . . . . Secondary Targets 3 | . . 2 1 Max Gunslinging Chain 1 | . . 1 1 Shots Hit Robots 73 | 2 . 45 26 Core Hits 29 | . . 17 12 Critical Kills . | . . . . Critical Parts Destroyed 1 | . . . 1 Critical Strikes 1 | . . . 1 Smash 1 | . . . 1 Melee Attacks 4 | . . . 4 Impact 4 | . . . 4 Slashing . | . . . . Piercing . | . . . . Sneak Attacks . | . . . . Combat Hostiles . | . . . . Follow-up Attacks . | . . . . Damage Inflicted 1006 | 18 . 519 469 Guns 896 | 18 . 516 362 Cannons 39 | . . . 39 Explosions . | . . . . Melee 68 | . . . 68 Ramming 3 | . . 3 . Kinetic 687 | 8 . 394 285 Thermal 248 | 10 . 122 116 Explosive . | . . . . Electromagnetic . | . . . . Impact 68 | . . . 68 Slashing . | . . . . Piercing . | . . . . Highest Corruption . | . . . . Average Corruption . | . . . . Corruption Purged . | . . . . Corruption Blocked . | . . . . Overload Shots . | . . . . Overflow Damage 38 | . . . 38 Projectiles . | . . . . Explosions . | . . . . Melee 38 | . . . 38 Knockbacks 1 | . . . 1 Impact 1 | . . . 1 Kinetic . | . . . . Secondary . | . . . . Self-Inflicted Damage . | . . . . Shots . | . . . . Rammed . | . . . . Targets Rammed 1 | . . 1 . Kicked 1 | . . 1 . Crushed . | . . . . Highest Temperature 314 | 20 . 314 27 Average Temperature 88 | 15 . 97 15 Received Heat Transfer 291 | . . 264 27 Effects 1 | . . 1 . Energy Bleed 1 | . . 1 . Siege Activations . | . . . . Robots Corrupted . | . . . . Combat Hostiles . | . . . . Parts Fried . | . . . . Impact Corruptions 1 | . . . 1 Robots Melted . | . . . . Combat Hostiles . | . . . . Parts Melted 1 | . . 1 . Heat Transferred 619 | 25 . 298 296 Parts Sabotaged . | . . . . Parts Stolen . | . . . . Parts Stripped . | . . . . Power Chain Reactions . | . . . . Alert | -11 -10 -9 -9 ------- Run | Yrd Mat Mat Min Peak Influence 220 | . 14 220 72 Initial 7 | . . 5 7 Average 65 | . 6 102 53 Maximum Alert Level 1 | . . 1 . Low Security (%) 94 | 100 100 88 100 Level 1 5 | . . 11 . Level 2 . | . . . . Level 3 . | . . . . Level 4 . | . . . . Level 5 . | . . . . High Security . | . . . . Max Security . | . . . . Squads Dispatched . | . . . . Investigation . | . . . . Extermination . | . . . . Reinforcement . | . . . . Assault . | . . . . Garrison . | . . . . Intercept . | . . . . Searches Triggered . | . . . . Construction Impeded . | . . . . Haulers Reinforced . | . . . . Active Scanning Responses . | . . . . Cargo Convoy Interrupts . | . . . . Stealth | -11 -10 -9 -9 --------- Run | Yrd Mat Mat Min Distress Signals 1 | . . 1 . Communications Jammed . | . . . . Distress Signals . | . . . . Times Spotted 29 | . 1 11 17 Peak Tracking Total 7 | . 1 5 7 Tactical Retreats 1 | . . . 1 Traps | -11 -10 -9 -9 ------- Run | Yrd Mat Mat Min Traps Triggered . | . . . . Indirectly . | . . . . Trap Hack Attempts . | . . . . Triggered . | . . . . Disarmed . | . . . . Reprogrammed . | . . . . Reused . | . . . . Traps Extracted . | . . . . Installed . | . . . . Triggered . | . . . . Machines | -11 -10 -9 -9 ---------- Run | Yrd Mat Mat Min Machines Disabled . | . . . . Max in Single Turn . | . . . . Machines Repaired . | . . . . Machines Dismantled . | . . . . Machines Sabotaged . | . . . . Overloaded Fab Kills . | . . . . Hacking | -11 -10 -9 -9 --------- Run | Yrd Mat Mat Min Machines Accessed 4 | . 3 1 . Terminals 4 | . 3 1 . Fabricators . | . . . . Repair Stations . | . . . . Recycling Units . | . . . . Scanalyzers . | . . . . Garrison Access . | . . . . Total Hacks 17 | . 13 4 . Successful 13 | . 11 2 . Failed 4 | . 2 2 . Catastrophic 2 | . . 2 . Database Lockouts . | . . . . Manual . | . . . . Terminals 17 | . 13 4 . Fabricators . | . . . . Repair Stations . | . . . . Recycling Units . | . . . . Scanalyzers . | . . . . Garrison Access . | . . . . Terminal Hacks 13 | . 11 2 . Record 4 | . 4 . . Prototype ID Bank 3 | . 3 . . Emergency Access Points 1 | . 1 . . Dispatch Records 1 | . 1 . . Maintenance Status 1 | . . 1 . Reinforcement Status 1 | . 1 . . Registered Components 1 | . . 1 . Zone Layout 1 | . 1 . . Fabricator Hacks . | . . . . Repair Station Hacks . | . . . . Recycling Unit Hacks . | . . . . Scanalyzer . | . . . . Garrison Access Hacks . | . . . . Unauthorized Hacks . | . . . . Terminals . | . . . . Fabricators . | . . . . Repair Stations . | . . . . Recycling Units . | . . . . Scanalyzers . | . . . . Garrison Access . | . . . . Data Cores Recovered . | . . . . Used . | . . . . Hacking Detections 4 | . 3 1 . Full Trace Events 1 | . 1 . . Feedback Events . | . . . . Feedback Blocked . | . . . . Robot Schematics Acquired . | . . . . Robots Built . | . . . . Authchips . | . . . . Time . | . . . . Total Robot Build Rating . | . . . . Part Schematics Acquired . | . . . . Parts Built . | . . . . Authchips . | . . . . Time . | . . . . Total Part Build Rating . | . . . . Parts Repaired . | . . . . Time . | . . . . Parts Recycled . | . . . . Recycled Matter . | . . . . Retrieved Matter . | . . . . Retrieved Components . | . . . . Parts Scanalyzed . | . . . . Part Schematics Acquired . | . . . . Parts Damaged . | . . . . Bothacking | -11 -10 -9 -9 ------------ Run | Yrd Mat Mat Min Used RIF Installer . | . . . . Robots Hacked . | . . . . Non-combat . | . . . . Combat . | . . . . Robot Hacks Applied . | . . . . Relay Couplers Released . | . . . . Fabnet Peak Effective % . | . . . . Robots Rewired . | . . . . Allies Hacked . | . . . . Hacks Repelled . | . . . . Allies | -11 -10 -9 -9 -------- Run | Yrd Mat Mat Min Total Allies . | . . . . Largest Group . | . . . . Highest-Rated Group . | . . . . Highest-Rated Ally . | . . . . Total Orders . | . . . . Ally Attacks . | . . . . Total Damage . | . . . . Kills . | . . . . Allies Corrupted . | . . . . Allies Melted . | . . . . Intel | -11 -10 -9 -9 ------- Run | Yrd Mat Mat Min Robot Analysis Total . | . . . . Derelict Logs Recovered . | . . . . Drone Launches . | . . . . Drone Recoveries . | . . . . Exploration | -11 -10 -9 -9 ------------- Run | Yrd Mat Mat Min Turns Passed 868 | 69 132 411 256 Spaces Moved 371 | 41 103 148 79 Core 17 | 7 . . 10 Treads . | . . . . Legs 346 | 34 103 148 61 Wheels . | . . . . Hover 8 | . . . 8 Flight . | . . . . Fastest Speed 50 | 50 120 120 80 Average Speed 160 | 120 120 184 187 Slowest Speed 300 | 200 120 190 300 Overloaded Moves . | . . . . Propulsion Burnouts . | . . . . Robots Hopped . | . . . . Cave-ins Triggered . | . . . . Exploration Rate (%) 16 | 5 24 14 22 Regions Visited 3 Branch Regions 1 Pre-discovered Areas . | . . . . Known Exits Taken . | . . . . Unknown Exits Taken 3 | 1 1 1 . Scrap Searched . | . . . . Spaces Dug . | . . . . Terrain Destroyed 4 | . . . 4 Melee . | . . . . Projectile 4 | . . . 4 AOE . | . . . . Terrain Rammed . | . . . . Walls Destroyed . | . . . . Machines Disabled . | . . . . Actions | -11 -10 -9 -9 --------- Run | Yrd Mat Mat Min Total 533 | 59 112 223 139 Wait . | . . . . Move 368 | 40 102 147 79 Hop . | . . . . Pick Up 27 | 10 6 7 4 Fast Attach 4 | . . 4 . Attach 15 | 6 1 2 6 Detach . | . . . . Swap 20 | 1 1 11 7 Drop 23 | 1 2 13 7 Fire 71 | 1 . 38 32 Melee 4 | . . . 4 Ram . | . . . . Kick 1 | . . 1 . Crush . | . . . . Escape Stasis . | . . . . Rewire . | . . . . Trap . | . . . . Miscellaneous . | . . . . Route ------- -11/Scrapyard -10/Materials -9/Materials -9/Mines History --------- Turn | Location | Event 2 | -11/Scrapyard | Met Revision 17 20 | -11/Scrapyard | Discovered new exit (range 15) 70 | -11/Scrapyard | Entered Materials 196 | -10/Materials | Discovered new exit (range 4) 202 | -10/Materials | Entered another Materials area 202 | -9/Materials | Evolved 2 slots: Utility x2 317 | -9/Materials | Build established: Mutant 482 | -9/Materials | Lost 3 parts (3u) 532 | -9/Materials | Discovered new exit (range 15) 613 | -9/Materials | Entered Mines 696 | -9/Mines | Assembled infested the area 776 | -9/Mines | Lost 6 parts (1p1n3u1w) 776 | -9/Mines | Core integrity fell below 50% 791 | -9/Mines | Received a Rocket Launcher from a helpful Derelict 843 | -9/Mines | Core integrity fell below 20% 869 | -9/Mines | Destroyed by as-71866 with Assembled Rifle Last Messages --------------- 00801_ The unstable cave ceiling collapses. 00812_ Acquired 10 matter. 00814_ Acquired 4 matter. 00819_ as-50451 destroyed. 00820_ Acquired 4 matter. 00825_ Acquired Mni. Grenade Launcher. 00829_ The unstable cave ceiling collapses. 00835_ Beam Rifle destroyed. 00839_ The unstable cave ceiling collapses. 00848_ Mni. Grenade Launcher destroyed. 00852_ The unstable cave ceiling collapses. 00855_ Imp. Light Cannon destroyed. 00860_ as-67657 suffers critical hit (Smash). 00860_ Destroyed Asb. Hover Unit. 00860_ as-67657 system corrupted by crushing effect. 00860_ as-67657 destroyed. 00863_ Acquired 4 matter. 00864_ The unstable cave ceiling collapses. 00864_ as-71866 knocked back. Map ----- +----------------------------------------------------+ | ?????????????????? ## ???????????? | | ???????? ? ??????? # ???#????????? | | ????????# ??????# ??? ##???????? | | ?????????# ###?## ??? ##??????? | | ?????????# ## #??? ???????? | | ?????????# ##?? ?????????? | | ?????????? ## #???????????? | | ??????????????# #???????????? | | ?????????????????# =[ ] #???????????????? | | ?????????????????# ##???????????????? | | ?????????????????# #####????????????? | | ??????######?????# [ ## #????????????? | | ?????##"%["##????## ## #????????????? | | ?????#![*=! #?????##### #????????????? | | ?????#!/![![#??????## # #????????????? | | ?????## =[*##??????# # # ##???????????? | | ?????###++###?????## # #???????????? | | ?????# #?????# #!%!# #???????????? | | ?????# ######## # ##???????????? | | ?????# # ##????? ????? | | ?????# # # #### ??? | | ?????# # % % #???? | | ?????# %# ] #????? | | ?????# !% ##????? | | ?????# t # ! ##?????? | | ?????# a@ # ###??????? | | ?????# # = ##????????? | | ?????########;## %# # ##?????????? | | ???????????????## ### ##### ##??????????? | | ????????????????# #?###????####???????????? | | ????????????????# #???????????????????????? | | ????????????????# #???????????????????????? | | ????????????????# #???????????????????????? | | ????????????????# #???????????????????????? | | ????????????????? ????????????????????????? | | ????????????????? ????????????????????????? | | ????????????????? ????????????????????????? | | ????????????????? ????????????????????????? | | ????????????????? ????????????????????????? | | ????????????????? ????????????????????????? | | ????????????????? ????????????????????????? | | ??????????????????????????????????????????? | | ??????????????????????????????????????????? | | ??????????????????????????????????????????? | | ??????????????????????????????????????????? | | ??????????????????????????????????????????? | | ??????????????????????????????????????????? | | ??????????????????????????????????????????? | | ??????????????????????????????????????????? | | ??????????????????????????????????????????? | +----------------------------------------------------+ Best States ------------- Heat Dissipation 38 Energy Generation 12 Energy Capacity 265 Matter Stores 300 Matter Capacity 300 Sight Range 16 Terrain Scan Density 10 Armor Coverage 600 Evasion (%) 55 Targeting Accuracy 6 Item Schematics ----------------- None Robot Schematics ------------------ None Fabricated ------------ Nothing Alien Tech Used ----------------- None Achievements -------------- None Challenges ------------ None Game ------ Seed MagneticPhasingMinigun Manual? 0 Play Time 00:09:59 Cumulative 33.2 hours Start 2024.05.23 @ 07:30:51 End 2024.05.23 @ 07:38:05 Sessions 1 Manual Loads 0 Difficulty Rogue Special Mode None Game No. 56 Rogue 56 Adventurer 0 Explorer 0 Win Type - Total 0 Types 0/0/0/0/0/0/0/0/0 Lore% 24 Gallery% 37 Achievement% 29 Wizard Run 0 Options --------- Layout 1 ASCII 0 Keyboard 0 Movement Mouse Keybinds 0 Fullscreen 1 Font 24/Smallcaps Map View 50x40 Zoom Use 0% Tactical HUD 1 Map Filters NONE Filters NONE Steam 1 RUN: 188359a0-1042-46a1-add0-b835f0c66bea